[Event "Early-Titled-Tuesday-Blitz-February-20-2024"]
[Site "Chess.com"]
[Date "2024.02.20"]
[Round "8"]
[White "campochess"]
[Black "lluiss"]
[Result "1/2-1/2"]
[WhiteElo "2137"]
[BlackElo "2160"]
[TimeControl "180+1"]
[EndTime "9:31:02 PST"]
[Termination "Game drawn by repetition"]

1. e4 {[%clk 0:02:46.5]} 1... e6 {[%clk 0:02:58.3]} 2. Qe2 {[%clk 0:02:45.7]}
2... c5 {[%clk 0:02:55]} 3. c3 {[%clk 0:02:44.6]} 3... Nc6 {[%clk 0:02:54.8]} 4.
Nf3 {[%clk 0:02:44]} 4... Nf6 {[%clk 0:02:53.7]} 5. d4 {[%clk 0:02:43.4]} 5...
cxd4 {[%clk 0:02:52.4]} 6. cxd4 {[%clk 0:02:43.5]} 6... d5 {[%clk 0:02:52.6]} 7.
e5 {[%clk 0:02:42.5]} 7... Ne4 {[%clk 0:02:52.6]} 8. Nc3 {[%clk 0:02:42.2]} 8...
Nxc3 {[%clk 0:02:45.5]} 9. bxc3 {[%clk 0:02:41.2]} 9... Be7 {[%clk 0:02:46.1]}
10. h4 {[%clk 0:02:36.4]} 10... Qa5 {[%clk 0:02:43.1]} 11. Bd2 {[%clk
0:02:35.2]} 11... Qa4 {[%clk 0:02:38.5]} 12. Qb5 {[%clk 0:02:32.5]} 12... Qxb5
{[%clk 0:02:33.1]} 13. Bxb5 {[%clk 0:02:31.3]} 13... Bd7 {[%clk 0:02:33.8]} 14.
Bd3 {[%clk 0:02:30.4]} 14... Rc8 {[%clk 0:02:29]} 15. Rc1 {[%clk 0:02:28.7]}
15... Na5 {[%clk 0:02:27.9]} 16. Ke2 {[%clk 0:02:14.4]} 16... Nc4 {[%clk
0:02:12.7]} 17. Be1 {[%clk 0:02:14.1]} 17... Bb5 {[%clk 0:02:07.7]} 18. g4
{[%clk 0:02:01.8]} 18... Kd7 {[%clk 0:02:02.6]} 19. Nd2 {[%clk 0:02:00.4]} 19...
Ba6 {[%clk 0:02:02.3]} 20. Nxc4 {[%clk 0:01:53.1]} 20... Bxc4 {[%clk 0:02:01.2]}
21. Bxc4 {[%clk 0:01:52.9]} 21... Rxc4 {[%clk 0:02:01.2]} 22. Bd2 {[%clk
0:01:50.3]} 22... Rhc8 {[%clk 0:01:55.8]} 23. Rb1 {[%clk 0:01:47.6]} 23... R8c7
{[%clk 0:01:49.8]} 24. f4 {[%clk 0:01:47]} 24... Ra4 {[%clk 0:01:47.4]} 25. Rb2
{[%clk 0:01:47.1]} 25... a6 {[%clk 0:01:41.2]} 26. f5 {[%clk 0:01:46.4]} 26...
b5 {[%clk 0:01:40.5]} 27. fxe6+ {[%clk 0:01:45.6]} 27... fxe6 {[%clk 0:01:39.9]}
28. g5 {[%clk 0:01:44.7]} 28... Rc8 {[%clk 0:01:09.7]} 29. Rf1 {[%clk
0:01:43.5]} 29... Rf8 {[%clk 0:01:09.5]} 30. Rxf8 {[%clk 0:01:34.7]} 30... Bxf8
{[%clk 0:01:10.4]} 31. Kd3 {[%clk 0:01:31.7]} 31... Ra3 {[%clk 0:01:06.2]} 32.
Kc2 {[%clk 0:01:23.3]} 32... Ra4 {[%clk 0:00:59.8]} 33. Kb1 {[%clk 0:01:18]}
33... Rc4 {[%clk 0:00:58.6]} 34. Kc2 {[%clk 0:01:14.2]} 34... Ba3 {[%clk
0:00:55]} 35. Rb1 {[%clk 0:01:11]} 35... Ke7 {[%clk 0:00:51.8]} 36. Kd3 {[%clk
0:01:10.2]} 36... Kf7 {[%clk 0:00:47.6]} 37. h5 {[%clk 0:01:10.4]} 37... Ke7
{[%clk 0:00:47]} 38. Rf1 {[%clk 0:01:10.1]} 38... Rc8 {[%clk 0:00:32.3]} 39. g6
{[%clk 0:01:10.2]} 39... hxg6 {[%clk 0:00:32.2]} 40. hxg6 {[%clk 0:01:08.7]}
40... Rf8 {[%clk 0:00:32.8]} 41. Bg5+ {[%clk 0:00:54]} 41... Ke8 {[%clk
0:00:32.5]} 42. Rh1 {[%clk 0:00:45]} 42... Rf3+ {[%clk 0:00:31]} 43. Kd2 {[%clk
0:00:43.6]} 43... Rg3 {[%clk 0:00:31.5]} 44. Rh8+ {[%clk 0:00:41.8]} 44... Kd7
{[%clk 0:00:31.6]} 45. Rh5 {[%clk 0:00:41.6]} 45... Be7 {[%clk 0:00:28.8]} 46.
Bxe7 {[%clk 0:00:36.5]} 46... Kxe7 {[%clk 0:00:29.7]} 47. Rh8 {[%clk 0:00:36.4]}
47... Rxg6 {[%clk 0:00:27.7]} 48. Ra8 {[%clk 0:00:36.3]} 48... Rg2+ {[%clk
0:00:27.6]} 49. Ke3 {[%clk 0:00:35.3]} 49... Rxa2 {[%clk 0:00:28.5]} 50. Ra7+
{[%clk 0:00:34.5]} 50... Kf8 {[%clk 0:00:28.5]} 51. Kf4 {[%clk 0:00:32.3]} 51...
a5 {[%clk 0:00:25.1]} 52. Rb7 {[%clk 0:00:30.7]} 52... Rb2 {[%clk 0:00:21.8]}
53. Kg5 {[%clk 0:00:26.6]} 53... b4 {[%clk 0:00:20.6]} 54. cxb4 {[%clk
0:00:25.7]} 54... axb4 {[%clk 0:00:19.4]} 55. Kg6 {[%clk 0:00:24.4]} 55... Rg2+
{[%clk 0:00:18.6]} 56. Kh7 {[%clk 0:00:24.4]} 56... Rh2+ {[%clk 0:00:15.2]} 57.
Kg6 {[%clk 0:00:24.3]} 57... Rg2+ {[%clk 0:00:13.7]} 58. Kh7 {[%clk 0:00:24.3]}
58... Rh2+ {[%clk 0:00:11.8]} 59. Kg6 {[%clk 0:00:24.2]} 59... Rg2+ {[%clk
0:00:11.5]} 1/2-1/2

[Event "Early-Titled-Tuesday-Blitz-February-20-2024"]
[Site "Chess.com"]
[Date "2024.02.20"]
[Round "8"]
[White "Fandorine"]
[Black "Witik"]
[Result "1-0"]
[WhiteElo "2957"]
[BlackElo "2778"]
[TimeControl "180+1"]
[EndTime "9:31:03 PST"]
[Termination "Fandorine won by resignation"]

1. d4 {[%clk 0:03:00.9]} 1... Nf6 {[%clk 0:02:59.1]} 2. c4 {[%clk 0:03:01.4]}
2... e6 {[%clk 0:02:59.6]} 3. Nc3 {[%clk 0:02:59.8]} 3... Bb4 {[%clk 0:02:59.4]}
4. Nf3 {[%clk 0:02:55.3]} 4... b6 {[%clk 0:02:42.5]} 5. Bg5 {[%clk 0:02:54]}
5... Bb7 {[%clk 0:02:40]} 6. e3 {[%clk 0:02:52.3]} 6... h6 {[%clk 0:02:26.4]} 7.
Bh4 {[%clk 0:02:52.5]} 7... Bxc3+ {[%clk 0:02:24.2]} 8. bxc3 {[%clk 0:02:52.4]}
8... d6 {[%clk 0:02:18.7]} 9. Nd2 {[%clk 0:02:51.5]} 9... c5 {[%clk 0:02:08.4]}
10. f3 {[%clk 0:02:50.6]} 10... Nc6 {[%clk 0:02:05.4]} 11. Bd3 {[%clk 0:02:50]}
11... Qe7 {[%clk 0:01:58.1]} 12. O-O {[%clk 0:02:30.5]} 12... g5 {[%clk
0:01:42.3]} 13. Bf2 {[%clk 0:02:30.3]} 13... h5 {[%clk 0:01:30]} 14. e4 {[%clk
0:02:28.9]} 14... h4 {[%clk 0:01:26]} 15. a4 {[%clk 0:02:19.5]} 15... Nh5 {[%clk
0:01:19.8]} 16. Nb3 {[%clk 0:02:15.8]} 16... Nf4 {[%clk 0:01:07.6]} 17. a5
{[%clk 0:02:13.8]} 17... Rd8 {[%clk 0:00:57.8]} 18. Be3 {[%clk 0:02:00.6]} 18...
Qf6 {[%clk 0:00:55.1]} 19. Kh1 {[%clk 0:01:55.4]} 19... Nh5 {[%clk 0:00:45.2]}
20. Rf2 {[%clk 0:01:48.3]} 20... e5 {[%clk 0:00:42.9]} 21. d5 {[%clk 0:01:29.7]}
21... Ne7 {[%clk 0:00:43]} 22. axb6 {[%clk 0:01:28.2]} 22... axb6 {[%clk
0:00:43.4]} 23. Ra7 {[%clk 0:01:28.9]} 23... Bc8 {[%clk 0:00:44.1]} 24. Kg1
{[%clk 0:01:26.7]} 24... Ng6 {[%clk 0:00:44]} 25. Bf1 {[%clk 0:01:11.3]} 25...
Ngf4 {[%clk 0:00:42.6]} 26. Nc1 {[%clk 0:01:06.4]} 26... Kf8 {[%clk 0:00:42.2]}
27. Qb3 {[%clk 0:00:55.1]} 27... g4 {[%clk 0:00:40.5]} 28. fxg4 {[%clk
0:00:50.8]} 28... Bxg4 {[%clk 0:00:39.7]} 29. Nd3 {[%clk 0:00:40.8]} 29... Kg7
{[%clk 0:00:24.8]} 30. Qxb6 {[%clk 0:00:38.3]} 30... Rb8 {[%clk 0:00:18.1]} 31.
Rb7 {[%clk 0:00:38.5]} 31... Ra8 {[%clk 0:00:16.9]} 32. Qb1 {[%clk 0:00:27]}
32... Ra3 {[%clk 0:00:14.1]} 33. Qc1 {[%clk 0:00:20.6]} 33... Rha8 {[%clk
0:00:13.6]} 34. Nxf4 {[%clk 0:00:17.4]} 34... exf4 {[%clk 0:00:13.8]} 35. Bxf4
{[%clk 0:00:17.5]} 35... Ra1 {[%clk 0:00:14.2]} 36. Bh6+ {[%clk 0:00:11.5]}
36... Qxh6 {[%clk 0:00:10.8]} 37. Rbxf7+ {[%clk 0:00:12]} 37... Kg6 {[%clk
0:00:10.9]} 38. R2f6+ {[%clk 0:00:12.4]} 38... Nxf6 {[%clk 0:00:11.4]} 39. Rxf6+
{[%clk 0:00:13.1]} 39... Kxf6 {[%clk 0:00:11.8]} 40. Qxh6+ {[%clk 0:00:13.8]}
40... Kf7 {[%clk 0:00:04.9]} 41. Qf4+ {[%clk 0:00:14.4]} 41... Ke7 {[%clk
0:00:05.3]} 42. Qg5+ {[%clk 0:00:10.6]} 42... Kf7 {[%clk 0:00:05]} 43. Qxg4
{[%clk 0:00:10.4]} 43... Rb1 {[%clk 0:00:03.7]} 44. Qxh4 {[%clk 0:00:07.1]}
44... Raa1 {[%clk 0:00:03.2]} 45. Qf4+ {[%clk 0:00:07.7]} 45... Ke7 {[%clk
0:00:03]} 46. g3 {[%clk 0:00:07.6]} 1-0

[Event "Early-Titled-Tuesday-Blitz-February-20-2024"]
[Site "Chess.com"]
[Date "2024.02.20"]
[Round "8"]
[White "RantomOpening"]
[Black "chessdjw"]
[Result "0-1"]
[WhiteElo "2547"]
[BlackElo "2748"]
[TimeControl "180+1"]
[EndTime "9:31:03 PST"]
[Termination "chessdjw won by resignation"]

1. c4 {[%clk 0:02:59]} 1... g6 {[%clk 0:02:59.7]} 2. Nf3 {[%clk 0:02:57]} 2...
Bg7 {[%clk 0:03:00]} 3. e4 {[%clk 0:02:57.4]} 3... e5 {[%clk 0:02:57.7]} 4. d4
{[%clk 0:02:56.4]} 4... exd4 {[%clk 0:02:57.8]} 5. Nxd4 {[%clk 0:02:57.3]} 5...
Nf6 {[%clk 0:02:58.4]} 6. Nc3 {[%clk 0:02:57.5]} 6... O-O {[%clk 0:02:59.1]} 7.
Be2 {[%clk 0:02:57.4]} 7... Re8 {[%clk 0:02:59.6]} 8. f3 {[%clk 0:02:55.3]} 8...
c6 {[%clk 0:02:59.9]} 9. O-O {[%clk 0:02:51.5]} 9... d5 {[%clk 0:03:00.2]} 10.
exd5 {[%clk 0:02:48.2]} 10... cxd5 {[%clk 0:03:01.1]} 11. Bg5 {[%clk 0:02:38.3]}
11... Nc6 {[%clk 0:02:17.1]} 12. cxd5 {[%clk 0:02:14]} 12... Nxd4 {[%clk
0:02:03.5]} 13. Qxd4 {[%clk 0:02:14.9]} 13... Nxd5 {[%clk 0:01:50.6]} 14. Qxd5
{[%clk 0:02:05.6]} 14... Bd4+ {[%clk 0:01:31.3]} 15. Kh1 {[%clk 0:02:01.4]}
15... Qxd5 {[%clk 0:01:31.2]} 16. Nxd5 {[%clk 0:02:01.3]} 16... Rxe2 {[%clk
0:01:31.4]} 17. Rfe1 {[%clk 0:01:52.6]} 17... Rxe1+ {[%clk 0:01:26.7]} 18. Rxe1
{[%clk 0:01:53.5]} 18... Be6 {[%clk 0:01:07.9]} 19. Bf6 {[%clk 0:01:32.2]} 19...
Bxf6 {[%clk 0:00:53.5]} 20. Nxf6+ {[%clk 0:01:31.3]} 20... Kg7 {[%clk
0:00:54.2]} 21. Ne4 {[%clk 0:01:28.5]} 21... Bxa2 {[%clk 0:00:54.5]} 22. Nc3
{[%clk 0:01:25.8]} 22... Be6 {[%clk 0:00:52.7]} 23. Rd1 {[%clk 0:01:25.7]} 23...
Rc8 {[%clk 0:00:44.5]} 24. Kg1 {[%clk 0:01:25.7]} 24... Rc6 {[%clk 0:00:43.8]}
25. Kf2 {[%clk 0:01:24.6]} 25... Rb6 {[%clk 0:00:44.2]} 26. Rd2 {[%clk
0:01:23.7]} 26... Rb4 {[%clk 0:00:44.7]} 27. Ne4 {[%clk 0:01:23.6]} 27... b6
{[%clk 0:00:39.3]} 28. h4 {[%clk 0:01:23.9]} 28... h6 {[%clk 0:00:37.1]} 29. g3
{[%clk 0:01:20.2]} 29... a5 {[%clk 0:00:37]} 30. Ke3 {[%clk 0:01:07.2]} 30...
Rb3+ {[%clk 0:00:36.2]} 31. Nc3 {[%clk 0:01:07.2]} 31... a4 {[%clk 0:00:35.2]}
32. Rc2 {[%clk 0:00:40]} 32... b5 {[%clk 0:00:34]} 33. Kd2 {[%clk 0:00:38.6]}
33... b4 {[%clk 0:00:27.6]} 34. Nxa4 {[%clk 0:00:38.4]} 34... Rxf3 {[%clk
0:00:28.3]} 35. Nc5 {[%clk 0:00:37.1]} 35... Bf5 {[%clk 0:00:23.5]} 36. Rc4
{[%clk 0:00:36.6]} 36... Rxg3 {[%clk 0:00:17.1]} 37. Rxb4 {[%clk 0:00:36.7]}
37... g5 {[%clk 0:00:17]} 38. hxg5 {[%clk 0:00:36.7]} 38... hxg5 {[%clk
0:00:17.9]} 39. Rb3 {[%clk 0:00:32.2]} 39... Rg2+ {[%clk 0:00:16.5]} 40. Ke1
{[%clk 0:00:32.7]} 40... Rc2 {[%clk 0:00:15.7]} 41. Na4 {[%clk 0:00:25.3]} 41...
g4 {[%clk 0:00:13.2]} 42. Nc3 {[%clk 0:00:25.7]} 42... Be6 {[%clk 0:00:12.4]}
43. Rb4 {[%clk 0:00:24.6]} 43... g3 {[%clk 0:00:12.8]} 44. Ne2 {[%clk
0:00:24.9]} 44... g2 {[%clk 0:00:12.5]} 45. Re4 {[%clk 0:00:13.3]} 45... Rxe2+
{[%clk 0:00:11.8]} 46. Rxe2 {[%clk 0:00:09.6]} 46... g1=Q+ {[%clk 0:00:12.7]}
47. Kd2 {[%clk 0:00:10.5]} 47... Qd4+ {[%clk 0:00:12.4]} 48. Kc2 {[%clk
0:00:10.7]} 48... Bf5+ {[%clk 0:00:12]} 49. Kc1 {[%clk 0:00:11.3]} 49... Qc4+
{[%clk 0:00:10.8]} 50. Rc2 {[%clk 0:00:11]} 50... Qf1+ {[%clk 0:00:10.6]} 0-1

[Event "Early-Titled-Tuesday-Blitz-February-20-2024"]
[Site "Chess.com"]
[Date "2024.02.20"]
[Round "8"]
[White "TemploVillamarin"]
[Black "pfalcon1949"]
[Result "0-1"]
[WhiteElo "2119"]
[BlackElo "1997"]
[TimeControl "180+1"]
[EndTime "9:31:04 PST"]
[Termination "pfalcon1949 won on time"]

1. d4 {[%clk 0:02:58.8]} 1... Nf6 {[%clk 0:02:59.4]} 2. Nc3 {[%clk 0:02:57.2]}
2... d5 {[%clk 0:02:57.6]} 3. e4 {[%clk 0:02:57.3]} 3... dxe4 {[%clk 0:02:53.1]}
4. f3 {[%clk 0:02:55.4]} 4... e3 {[%clk 0:02:51.8]} 5. Bxe3 {[%clk 0:02:54.5]}
5... Bf5 {[%clk 0:02:50.5]} 6. Qd2 {[%clk 0:02:53.3]} 6... e6 {[%clk 0:02:49.7]}
7. O-O-O {[%clk 0:02:52]} 7... Nc6 {[%clk 0:02:50]} 8. g4 {[%clk 0:02:51]} 8...
Bg6 {[%clk 0:02:49]} 9. Bb5 {[%clk 0:02:50.1]} 9... Nd5 {[%clk 0:02:47.4]} 10.
Nxd5 {[%clk 0:02:48.1]} 10... Qxd5 {[%clk 0:02:45]} 11. c4 {[%clk 0:02:48]}
11... Qd7 {[%clk 0:02:18]} 12. d5 {[%clk 0:02:45.5]} 12... a6 {[%clk 0:02:12.2]}
13. Ba4 {[%clk 0:02:29.3]} 13... b5 {[%clk 0:02:10.2]} 14. cxb5 {[%clk
0:02:24.6]} 14... axb5 {[%clk 0:02:00.3]} 15. dxc6 {[%clk 0:01:28.7]} 15...
Qxc6+ {[%clk 0:01:46.4]} 16. Qc3 {[%clk 0:01:26.9]} 16... Qxc3+ {[%clk
0:01:42.4]} 17. bxc3 {[%clk 0:01:26.7]} 17... bxa4 {[%clk 0:01:38.6]} 18. Bd4
{[%clk 0:01:00.5]} 18... Ba3+ {[%clk 0:01:35.4]} 19. Kd2 {[%clk 0:00:58.1]}
19... Rb8 {[%clk 0:01:32.3]} 20. Ke3 {[%clk 0:00:51.6]} 20... O-O {[%clk
0:01:17.2]} 21. Ne2 {[%clk 0:00:50.9]} 21... f6 {[%clk 0:01:13.6]} 22. Kf2
{[%clk 0:00:43.7]} 22... Rb2 {[%clk 0:01:08.4]} 23. c4 {[%clk 0:00:41.1]} 23...
Rxa2 {[%clk 0:01:05.4]} 24. Ra1 {[%clk 0:00:39]} 24... Rxa1 {[%clk 0:00:42]} 25.
Rxa1 {[%clk 0:00:38.4]} 25... c5 {[%clk 0:00:37.8]} 26. Rxa3 {[%clk 0:00:33.9]}
26... cxd4 {[%clk 0:00:38]} 27. Nxd4 {[%clk 0:00:32.5]} 27... Rd8 {[%clk
0:00:35.3]} 28. Nxe6 {[%clk 0:00:27.2]} 28... Rd2+ {[%clk 0:00:34.3]} 29. Ke3
{[%clk 0:00:24.1]} 29... Rxh2 {[%clk 0:00:33]} 30. Rxa4 {[%clk 0:00:22.9]} 30...
h5 {[%clk 0:00:28.7]} 31. gxh5 {[%clk 0:00:17.1]} 31... Bxh5 {[%clk 0:00:27.8]}
32. Ra7 {[%clk 0:00:15.6]} 32... g5 {[%clk 0:00:25.6]} 33. Rg7+ {[%clk
0:00:15.2]} 33... Kh8 {[%clk 0:00:24.4]} 34. Re7 {[%clk 0:00:13.7]} 34... Rc2
{[%clk 0:00:23.6]} 35. Kd3 {[%clk 0:00:11.1]} 35... Rc1 {[%clk 0:00:22.8]} 36.
c5 {[%clk 0:00:09.6]} 36... Bxf3 {[%clk 0:00:22.5]} 37. Kd4 {[%clk 0:00:08.1]}
37... g4 {[%clk 0:00:21.7]} 38. Nf4 {[%clk 0:00:06.8]} 38... g3 {[%clk
0:00:18.9]} 39. Re3 {[%clk 0:00:03.6]} 39... g2 {[%clk 0:00:11.4]} 40. Nh3
{[%clk 0:00:02.3]} 40... Bc6 {[%clk 0:00:08.6]} 41. Rg3 {[%clk 0:00:01.4]} 41...
Rc2 {[%clk 0:00:07.1]} 0-1

[Event "Early-Titled-Tuesday-Blitz-February-20-2024"]
[Site "Chess.com"]
[Date "2024.02.20"]
[Round "8"]
[White "LyonBeast"]
[Black "A-Fier"]
[Result "0-1"]
[WhiteElo "3158"]
[BlackElo "2843"]
[TimeControl "180+1"]
[EndTime "9:31:05 PST"]
[Termination "A-Fier won by resignation"]

1. e4 {[%clk 0:03:00.9]} 1... Nf6 {[%clk 0:03:00.3]} 2. e5 {[%clk 0:02:59.4]}
2... Nd5 {[%clk 0:03:00.8]} 3. Bc4 {[%clk 0:02:56.3]} 3... Nb6 {[%clk
0:03:00.5]} 4. Bb3 {[%clk 0:02:56.5]} 4... d6 {[%clk 0:03:00.9]} 5. Nf3 {[%clk
0:02:55.7]} 5... c5 {[%clk 0:02:52.4]} 6. d3 {[%clk 0:02:48.2]} 6... d5 {[%clk
0:02:52.4]} 7. Nbd2 {[%clk 0:02:39.1]} 7... Nc6 {[%clk 0:02:52.7]} 8. O-O {[%clk
0:02:36.9]} 8... Bg4 {[%clk 0:02:52.8]} 9. Re1 {[%clk 0:02:26.9]} 9... e6 {[%clk
0:02:51.1]} 10. c3 {[%clk 0:02:26.6]} 10... Be7 {[%clk 0:02:48.6]} 11. h3 {[%clk
0:02:23.7]} 11... Bf5 {[%clk 0:02:48.5]} 12. Bc2 {[%clk 0:02:23.3]} 12... O-O
{[%clk 0:02:47.5]} 13. Nf1 {[%clk 0:02:20.4]} 13... a5 {[%clk 0:02:45.8]} 14. a4
{[%clk 0:02:17.1]} 14... d4 {[%clk 0:02:45.6]} 15. Ng3 {[%clk 0:02:13.3]} 15...
Bg6 {[%clk 0:02:45.8]} 16. c4 {[%clk 0:02:13.3]} 16... Nb4 {[%clk 0:02:45.6]}
17. b3 {[%clk 0:01:56.3]} 17... Nd7 {[%clk 0:02:41.4]} 18. Bf4 {[%clk
0:01:49.3]} 18... Qc7 {[%clk 0:02:31.5]} 19. Qd2 {[%clk 0:01:47]} 19... Rae8
{[%clk 0:02:30]} 20. Re2 {[%clk 0:01:40.6]} 20... Qb6 {[%clk 0:02:30.2]} 21.
Rae1 {[%clk 0:01:38]} 21... Nxc2 {[%clk 0:02:28.9]} 22. Qxc2 {[%clk 0:01:38.9]}
22... Nb8 {[%clk 0:02:29.5]} 23. Ne4 {[%clk 0:01:34.7]} 23... Nc6 {[%clk
0:02:30]} 24. Bd2 {[%clk 0:01:35.2]} 24... Nb4 {[%clk 0:02:29.6]} 25. Bxb4
{[%clk 0:01:34.4]} 25... Qxb4 {[%clk 0:02:29.8]} 26. g3 {[%clk 0:01:24.5]} 26...
Qb6 {[%clk 0:02:28.6]} 27. Kg2 {[%clk 0:01:24.8]} 27... Qc6 {[%clk 0:02:28.9]}
28. Qd2 {[%clk 0:01:24.7]} 28... b6 {[%clk 0:02:29.3]} 29. Kh2 {[%clk
0:01:18.6]} 29... Bh5 {[%clk 0:02:25.8]} 30. g4 {[%clk 0:01:16.1]} 30... Bg6
{[%clk 0:02:26.3]} 31. Ng1 {[%clk 0:01:16.4]} 31... Bd8 {[%clk 0:02:24.7]} 32.
f4 {[%clk 0:01:14.1]} 32... Bc7 {[%clk 0:02:25]} 33. Nf3 {[%clk 0:01:08.2]}
33... f6 {[%clk 0:01:44.9]} 34. exf6 {[%clk 0:01:07.3]} 34... gxf6 {[%clk
0:01:45.3]} 35. Nh4 {[%clk 0:00:45.2]} 35... f5 {[%clk 0:01:45]} 36. Ng5 {[%clk
0:00:31.3]} 36... fxg4 {[%clk 0:01:39.7]} 37. Nxg6 {[%clk 0:00:31.3]} 37... hxg6
{[%clk 0:01:38.9]} 38. Rxe6 {[%clk 0:00:24.6]} 38... Bxf4+ {[%clk 0:01:18.6]}
39. Qxf4 {[%clk 0:00:24.1]} 39... Rxf4 {[%clk 0:01:19.3]} 40. Rxe8+ {[%clk
0:00:20]} 40... Rf8 {[%clk 0:01:19.5]} 41. R8e6 {[%clk 0:00:20.7]} 41... Qc7+
{[%clk 0:01:14.7]} 42. Kg2 {[%clk 0:00:21.1]} 42... gxh3+ {[%clk 0:01:09.5]} 43.
Kxh3 {[%clk 0:00:20.9]} 43... Qg7 {[%clk 0:00:59.4]} 44. R1e5 {[%clk 0:00:19.7]}
44... Qh6+ {[%clk 0:00:58.5]} 45. Kg3 {[%clk 0:00:19.6]} 45... Qh5 {[%clk
0:00:57.7]} 46. Rxb6 {[%clk 0:00:17.7]} 46... Qh1 {[%clk 0:00:44.6]} 47. Rxg6+
{[%clk 0:00:16.5]} 47... Kh8 {[%clk 0:00:45]} 48. Re2 {[%clk 0:00:09.1]} 48...
Qg1+ {[%clk 0:00:38.4]} 49. Rg2 {[%clk 0:00:08.9]} 49... Qe3+ {[%clk 0:00:32.4]}
50. Kh2 {[%clk 0:00:05.2]} 50... Qf4+ {[%clk 0:00:18.7]} 51. Kh3 {[%clk
0:00:04.1]} 51... Qf5+ {[%clk 0:00:17.3]} 0-1

[Event "Early-Titled-Tuesday-Blitz-February-20-2024"]
[Site "Chess.com"]
[Date "2024.02.20"]
[Round "8"]
[White "MasterofMasters2006"]
[Black "Perecke"]
[Result "1-0"]
[WhiteElo "2308"]
[BlackElo "2489"]
[TimeControl "180+1"]
[EndTime "9:31:05 PST"]
[Termination "MasterofMasters2006 won on time"]

1. d4 {[%clk 0:03:00.9]} 1... Nf6 {[%clk 0:02:59]} 2. c4 {[%clk 0:02:58.8]} 2...
e6 {[%clk 0:02:59.4]} 3. Nf3 {[%clk 0:02:57.7]} 3... b6 {[%clk 0:02:55.5]} 4. g3
{[%clk 0:02:57]} 4... Bb7 {[%clk 0:02:55.7]} 5. Bg2 {[%clk 0:02:56.3]} 5... Bb4+
{[%clk 0:02:56.3]} 6. Bd2 {[%clk 0:02:56]} 6... Qe7 {[%clk 0:02:55.4]} 7. O-O
{[%clk 0:02:55.4]} 7... Bxd2 {[%clk 0:02:54.5]} 8. Nbxd2 {[%clk 0:02:54.2]} 8...
O-O {[%clk 0:02:55]} 9. Qc2 {[%clk 0:02:53.2]} 9... d6 {[%clk 0:02:54]} 10. e4
{[%clk 0:02:52.3]} 10... e5 {[%clk 0:02:53.1]} 11. Rfe1 {[%clk 0:02:51.3]} 11...
Nbd7 {[%clk 0:02:51]} 12. dxe5 {[%clk 0:02:50.8]} 12... dxe5 {[%clk 0:02:51.9]}
13. Rad1 {[%clk 0:02:50.1]} 13... Rad8 {[%clk 0:02:51.2]} 14. a3 {[%clk
0:02:47.8]} 14... Nc5 {[%clk 0:02:50.3]} 15. b4 {[%clk 0:02:39.1]} 15... Ne6
{[%clk 0:02:13]} 16. Nb3 {[%clk 0:01:57.3]} 16... Rxd1 {[%clk 0:02:11.8]} 17.
Qxd1 {[%clk 0:01:57.2]} 17... Rd8 {[%clk 0:00:46.7]} 18. Qc2 {[%clk 0:01:56.1]}
18... Nf8 {[%clk 0:00:47]} 19. Nh4 {[%clk 0:01:47.5]} 19... g6 {[%clk
0:00:33.8]} 20. c5 {[%clk 0:01:47.4]} 20... Qe6 {[%clk 0:00:25.9]} 21. Bf3
{[%clk 0:01:30.7]} 21... Ba6 {[%clk 0:00:19.6]} 22. Ng2 {[%clk 0:01:11]} 22...
Bd3 {[%clk 0:00:19.3]} 23. Qc3 {[%clk 0:01:05.2]} 23... Qc4 {[%clk 0:00:18.2]}
24. Qxe5 {[%clk 0:00:57.3]} 24... N8d7 {[%clk 0:00:12.5]} 25. Qb2 {[%clk
0:00:56.9]} 25... Bc2 {[%clk 0:00:11.2]} 26. Nd2 {[%clk 0:00:54.4]} 26... Qd3
{[%clk 0:00:10.5]} 27. Re2 {[%clk 0:00:40.5]} 27... bxc5 {[%clk 0:00:09.1]} 28.
Ne1 {[%clk 0:00:40.3]} 28... Qa6 {[%clk 0:00:03.6]} 29. Nxc2 {[%clk 0:00:29.9]}
29... Ne5 {[%clk 0:00:03.9]} 30. Ne1 {[%clk 0:00:19.4]} 30... Nxf3+ {[%clk
0:00:03.4]} 31. Ndxf3 {[%clk 0:00:19.7]} 31... c4 {[%clk 0:00:02.3]} 32. Qxf6
{[%clk 0:00:19.1]} 32... Qxf6 {[%clk 0:00:01.9]} 33. e5 {[%clk 0:00:17.9]} 33...
Qe7 {[%clk 0:00:02.6]} 34. Rc2 {[%clk 0:00:16.8]} 34... c3 {[%clk 0:00:03.3]}
35. Rxc3 {[%clk 0:00:17]} 35... Rd1 {[%clk 0:00:03.7]} 36. Kg2 {[%clk
0:00:16.7]} 36... Kf8 {[%clk 0:00:03.6]} 37. Rc5 {[%clk 0:00:16.5]} 37... Ke8
{[%clk 0:00:03.5]} 38. Nc2 {[%clk 0:00:16.9]} 38... Kd7 {[%clk 0:00:03.6]} 39.
Ne3 {[%clk 0:00:17.4]} 39... Rb1 {[%clk 0:00:03]} 40. Nd5 {[%clk 0:00:17.5]}
40... Qe6 {[%clk 0:00:02.9]} 41. Rxc7+ {[%clk 0:00:17.1]} 41... Kd8 {[%clk
0:00:03.6]} 42. Rc5 {[%clk 0:00:16.4]} 42... Rd1 {[%clk 0:00:03.2]} 43. Nf4
{[%clk 0:00:16.5]} 43... Qa2 {[%clk 0:00:02.6]} 44. Ra5 {[%clk 0:00:09.6]} 44...
Qb3 {[%clk 0:00:02.3]} 45. Rxa7 {[%clk 0:00:09.2]} 45... Ra1 {[%clk 0:00:01.7]}
46. Nd4 {[%clk 0:00:08.9]} 46... Qc3 {[%clk 0:00:01.6]} 47. Ra8+ {[%clk
0:00:07.6]} 47... Kd7 {[%clk 0:00:01.5]} 48. Nb5 {[%clk 0:00:07.5]} 1-0